[Event "44th Chess Olympiad Women 2022"]
[Site "Chennai"]
[Date "2022.07.30"]
[Round "2.32"]
[White "Aulia, Medina Warda"]
[Black "Manova, Ivana"]
[Result "1-0"]
[ECO "C77"]
[WhiteElo "2374"]
[BlackElo "1849"]
[Annotator "TA"]
[PlyCount "115"]
[EventDate "2022.07.29"]
[EventType "team-tourn"]
[EventCountry "IND"]
[SourceTitle "playchess.com"]
[Source "ChessBase"]
[SourceQuality "1"]
[WhiteTeam "Indonesia"]
[BlackTeam "Macedonia"]
[WhiteTeamCountry "INA"]
[BlackTeamCountry "MKD"]
[TimeControl "40/5400+30:1800+30"]

{[%evp 13,115,12,24,20,36,14,13,23,31,35,93,97,90,62,102,93,117,115,98,54,40,32,33,0,0,0,16,0,0,0,0,-57,-46,-186,-141,-180,-95,-206,-24,-31,-49,-69,-68,-58,-54,-69,0,0,0,-4,0,-54,-8,-31,-37,-35,-37,-55,-60,-60,-52,-160,0,-283,0,-20,0,0,8,25,8,8,7,7,8,8,8,8,8,8,338,317,218,113,222,172,319,292,223,223,29973,29975,29976,29977,29977,29978,29983,29980,29980,29981,29987,29988,29988,29989]} 1. e4 {[%emt 0:00:03]} e5 {[%emt 0:00:10]} 2. Nf3 {[%emt 0:00:06]} Nc6 {[%emt 0:00:11]} 3. Bb5 {[%emt 0:00:09]} a6 {[%emt 0:00:12]} 4. Ba4 {[%emt 0:00:13]} Nf6 {[%emt 0:00:15]} 5. d3 {[%emt 0:00:16]} b5 {[%emt 0:03:12]} 6. Bb3 {[%emt 0:00:06]} Bc5 {[%emt 0:01:31]} 7. c3 {[%emt 0:02:02]} d6 {[%emt 0:03:01]} 8. Bg5 {[%emt 0:05:17][%cal Bc1g5,Bg5h4,Bh4g3][%mdl 32] is cutting edge theory. C77: Ruy Lopez: 3...a6 4 Ba4 Nf6, unusual lines.} Be6 {[%emt 0:09:49]} 9. Nbd2 {[%emt 0:03:41]} h6 {[%emt 0:12:01] Strongly threatening ...Bxb3.} 10. Bh4 {[%emt 0:01:12][%cal Ob3d5] [#] The position is equal.} g5 $146 {[%emt 0:06:56]} ({Predecessor:} 10... Bxb3 11. Nxb3 Bb6 12. a4 Rb8 13. axb5 axb5 14. O-O Qe7 15. Re1 Qe6 16. d4 Ne7 {½-½ (40) Wagner,D (2572)-Erdos,V (2614) Biel 2021}) 11. Bg3 {[%emt 0:00:05]} g4 {[%emt 0:05:36]} (11... Nh5 $14) 12. Nh4 $16 {[%emt 0:01:46]} Qd7 {[%emt 0:02:36]} 13. a4 {[%emt 0:01:39]} Rb8 {[%emt 0:04:41]} 14. axb5 {[%emt 0:03:13]} axb5 {[%emt 0:03:28]} 15. O-O {[%emt 0:00:26]} Rg8 {[%emt 0:12:24]} 16. Bxe6 {[%emt 0:06:24]} fxe6 {[%emt 0:01:13]} 17. Nb3 {[%emt 0:00:12]} Bb6 {[%emt 0:02:13]} 18. Re1 {[%emt 0:03:36]} Nh5 {[%emt 0:08:54]} 19. d4 {[%emt 0:01:11]} Rg5 {[%emt 0:02:13]} 20. Kh1 {[%emt 0:11:21]} Kf7 {[%emt 0:08:47]} 21. Qd3 {[%emt 0:15:53]} Kg8 {[%emt 0:02:10]} 22. dxe5 {[%emt 0:09:00]} (22. Rf1 $11) 22... Nxg3+ $15 {[%emt 0:00:47]} (22... Nxe5 23. Bxe5 Rxe5 24. Rf1 $11) 23. Qxg3 {[%emt 0:00:03]} (23. fxg3 $15 Nxe5 24. Qe2) 23... Nxe5 {[%emt 0:00:18]} 24. Nd4 {[%emt 0:00:04]} Rf8 {[%emt 0:01:55]} (24... c5 $19 25. Nc2 c4) 25. Rf1 {[%emt 0:01:12]} (25. Ra6 $17 {might work better.}) 25... Nc4 $2 {[%emt 0:01:07]} (25... c5 $19 26. Ndf5 exf5 27. Nxf5 Kh7) 26. Qd3 $11 {[%emt 0:02:53]} Nxb2 {[%emt 0:01:37]} 27. Qe2 {[%emt 0:01:51]} Nc4 {[%emt 0:00:42]} 28. f4 {[%emt 0:00:12]} gxf3 $1 {[%emt 0:01:20]} 29. Rxf3 {[%emt 0:00:43]} Bxd4 {[%emt 0:03:02]} (29... Qe8 $1 $15) 30. Rxf8+ {[%emt 0:01:48]} Kxf8 {[%emt 0:00:04]} 31. cxd4 {[%emt 0:00:40]} Kg7 {[%emt 0:02:29][%cal Bf8g7,Bg7h7,Bh7g8][%mdl 32]} 32. Rf1 {[%emt 0:02:17]} (32. Nf3 $11 Rg6 33. Nh4) 32... Qe7 {[%emt 0:00:50]} (32... Kg8 $15) 33. g3 {[%emt 0:01:49]} Kh7 {[%emt 0:00:40]} 34. Qd3 {[%emt 0:00:43]} Kg8 {[%emt 0:00:27]} 35. Rf2 {[%emt 0:04:42]} Rg7 {[%emt 0:00:25]} 36. e5 {[%emt 0:02:04]} Qg5 {[%emt 0:00:28] Inhibits Ng6.} (36... dxe5 37. Ng6 Qe8 38. Rf8+ Qxf8 39. Nxf8 Kxf8 40. dxe5 $16) 37. Qf3 {[%emt 0:03:45] [#]} (37. Qf1 $15 Qd8 38. Qc1) 37... d5 $2 {[%emt 0:00:27]} (37... Qg4 $1 $17 38. exd6 Qxf3+ 39. Rxf3 cxd6) 38. Qd1 $2 {[%emt 0:04:10][%mdl 8192]} (38. Qf8+ $1 $11 Kh7 39. Rf7) 38... Ne3 $2 {[%emt 0:00:33]} (38... Qg4 $19 39. Qg1 Qe4+ 40. Ng2 Rf7 41. Rxf7 Kxf7 42. Qf2+ Qf5 43. Qxf5+ exf5) 39. Qd3 {[%emt 0:02:58]} (39. Qf3 $2 Ng4 40. Qf8+ (40. Rf1 $2 Qd2 $19) 40... Kh7 $19) 39... Nc4 {[%emt 0:00:40]} 40. Qf1 {[%emt 0:03:22] Prevents Qc1. Hoping for Rf8+.} ({Wrong is} 40. Qf3 $2 Qg4 41. Qf8+ Kh7 $19) 40... Qg4 {[%emt 0:00:27]} 41. Rf8+ {[%emt 0:30:09]} Kh7 {[%emt 0:30:09] aiming for ...Ne3.} 42. Rf4 {[%emt 0:00:06]} Qh5 {[%emt 0:00:00]} 43. Qb1+ {[%emt 0:00:00]} Kg8 $132 {[%emt 0:00:00][%mdl 2048] Black has counterplay} 44. Qxb5 {[%emt 0:00:00]} Qd1+ {[%emt 0:00:00]} 45. Kg2 {[%emt 0:00:00] Qe8+ is the strong threat.} Ne3+ {[%emt 0:00:00]} 46. Kh3 {[%emt 0:00:00] Threatens to win with Qc6. Really sharp!} Qh5 $2 {[%emt 0:00:00][%mdl 8192]} (46... Kh7 $11 {and Black has nothing to worry.}) 47. Qc6 $18 {[%emt 0:00:00]} Re7 {[%emt 0:00:00]} 48. Qa8+ {[%emt 0:00:00]} (48. Qa6 $18) 48... Re8 {[%emt 0:00:28]} (48... Qe8 $16 {keeps fighting.} 49. Qa3 Nc4) 49. Qa4 {[%emt 0:00:00]} Nf5 {[%emt 0:03:28]} (49... Rf8 $2 50. Rxf8+ Kxf8 51. Qa3+ c5 52. Qxe3 $18) (49... Re7 $142) 50. Qd7 {[%emt 0:00:00] And now Rg4+ would win.} Re7 {[%emt 0:00:57]} 51. Qd8+ {[%emt 0:00:00]} Kf7 $2 {[%emt 0:00:26]} (51... Re8 $18 52. Qxc7 Kh8) 52. Rg4 {[%emt 0:00:00][%csl Gg4][%cal Rd8g8] White mates.} Ng7 {[%emt 0:00:35] [#]} 53. Rxg7+ $1 {[%emt 0:00:00][%mdl 512]} Kxg7 {[%emt 0:00:08]} 54. Qxe7+ {[%emt 0:00:00]} Kh8 {[%emt 0:00:19]} 55. Qd8+ {[%emt 0:00:28]} Kg7 {[%emt 0:00:23]} 56. Qxc7+ {[%emt 0:00:04]} Kh8 {[%emt 0:00:03]} 57. Qc8+ {[%emt 0:00:18]} Kg7 {[%emt 0:00:05]} 58. Qxe6 {[%emt 0:00:13] What a fight!  Weighted Error Value: White=0.32/Black=0.49} 1-0

[Event "44th Chess Olympiad Women 2022"]
[Site "Chennai"]
[Date "2022.07.30"]
[Round "2.32"]
[White "Citra, Dewi Ardhiani Anasta"]
[Black "Zhezhovska, Monika"]
[Result "1-0"]
[ECO "D02"]
[WhiteElo "2257"]
[BlackElo "1588"]
[Annotator "TA"]
[PlyCount "61"]
[EventDate "2022.07.29"]
[EventType "team-tourn"]
[EventCountry "IND"]
[SourceTitle "playchess.com"]
[Source "ChessBase"]
[SourceQuality "1"]
[WhiteTeam "Indonesia"]
[BlackTeam "Macedonia"]
[WhiteTeamCountry "INA"]
[BlackTeamCountry "MKD"]
[TimeControl "40/5400+30:1800+30"]

{[%evp 15,61,0,-4,0,51,48,68,79,61,37,37,44,31,27,67,30,58,31,47,30,164,99,105,100,105,99,266,289,284,286,317,317,330,285,362,351,368,355,339,308,488,460,564,533,733,727,836,770]} 1. d4 {[%emt 0:00:04]} d5 {[%emt 0:00:16]} 2. Bf4 {[%emt 0:00:08]} Nf6 {[%emt 0:00:28]} 3. e3 {[%emt 0:00:07]} e6 {[%emt 0:00:29]} 4. Nd2 {[%emt 0:00:50]} c5 {[%emt 0:01:13]} 5. Ngf3 {[%emt 0:01:12]} Nc6 {[%emt 0:01:07]} 6. c3 {[%emt 0:01:04]} Bd6 {[%emt 0:01:32]} 7. Bg3 {[%emt 0:01:18]} O-O {[%emt 0:00:37]} 8. Bd3 {[%emt 0:00:14]} b6 {[%emt 0:01:09]} 9. e4 {[%emt 0:04:05] Strongly threatening e5. Recently 9.Qe2 got a lot of attention. D02: 1 d4 d5 2 Nf3 sidelines, including 2...Nf6 3 g3 and 2...Nf6 3 Bf4.} dxe4 {[%emt 0:06:35]} (9... Be7 $11) 10. Nxe4 $14 {[%emt 0:00:09]} Be7 {[%emt 0:02:54][%cal Rc5d4]} 11. Nxf6+ {[%emt 0:05:22] White is slightly better.} Bxf6 {[%emt 0:00:11]} 12. Be4 {[%emt 0:05:44]} Bb7 {[%emt 0:02:15][%cal Rc5d4]} 13. dxc5 {[%emt 0:00:10]} bxc5 {[%emt 0:01:06]} 14. Qc2 {[%emt 0:16:25]} h6 {[%emt 0:07:14] [#]} 15. Nd2 $146 {[%emt 0:04:28]} ({Predecessor:} 15. Rd1 Qb6 16. O-O Rfd8 17. Rd2 Rxd2 18. Nxd2 Ba6 19. Re1 Rd8 20. Nf3 Bb7 21. h3 {½-½ (44) Szolc,G (2038)-Statucki,M (1754) Jastrzebia Gora 2019}) 15... Qe7 {[%emt 0:07:52]} 16. O-O {[%emt 0:02:55]} Rfd8 {[%emt 0:05:13]} 17. Nc4 {[%emt 0:04:53]} Rd7 {[%emt 0:05:33] [#]} (17... Bh4 $11 {and Black stays safe.}) 18. Rfe1 {[%emt 0:07:30]} (18. Qa4 $1 $18 Rc8 19. Bf3) 18... Nd8 {[%emt 0:09:51]} 19. Rad1 {[%emt 0:03:16] 0x0.0005ed1645f7dp-1022s more active pieces. The black rooks are badly placed.} Bxe4 {[%emt 0:07:05]} 20. Qxe4 {[%emt 0:00:12]} Nb7 $2 {[%emt 0:00:54] [#]} (20... Rxd1 $16 21. Rxd1 Nb7) 21. Rxd7 $1 $18 {[%emt 0:00:53]} Qxd7 {[%emt 0:01:04]} 22. Na5 {[%emt 0:00:24]} Nxa5 {[%emt 0:01:56]} 23. Qxa8+ {[%emt 0:03:37]} Kh7 {[%emt 0:00:03]} 24. Qe4+ {[%emt 0:00:17]} g6 {[%emt 0:01:08]} 25. h4 {[%emt 0:00:15][%cal Bh2h4,Bh4h5][%mdl 32]} Nc6 {[%emt 0:02:25]} 26. h5 {[%emt 0:01:04] And now hxg6+ would win.} Ne7 {[%emt 0:01:08]} 27. Be5 {[%emt 0:00:59]} Bg5 {[%emt 0:05:43]} (27... Bxe5 $142 28. Qxe5 Qd2) 28. Qf3 {[%emt 0:02:59][%cal Rf3f7] White is clearly winning.} Nf5 {[%emt 0:03:47]} 29. Rd1 {[%emt 0:00:43]} Qe7 {[%emt 0:00:53]} 30. Qc6 {[%emt 0:03:25]} gxh5 {[%emt 0:05:54]} 31. Qc8 {[%emt 0:01:11] Weighted Error Value: White=0.14 (very precise) /Black=0.51} 1-0

[Event "44th Chess Olympiad Women 2022"]
[Site "Chennai"]
[Date "2022.07.30"]
[Round "2.32"]
[White "Stojkovska, Monika"]
[Black "Sukandar, Irine Kharisma"]
[Result "0-1"]
[ECO "C29"]
[WhiteElo "2091"]
[BlackElo "2373"]
[Annotator "TA"]
[PlyCount "64"]
[EventDate "2022.07.29"]
[EventType "team-tourn"]
[EventCountry "IND"]
[SourceTitle "playchess.com"]
[Source "ChessBase"]
[SourceQuality "1"]
[WhiteTeam "Macedonia"]
[BlackTeam "Indonesia"]
[WhiteTeamCountry "MKD"]
[BlackTeamCountry "INA"]
[TimeControl "40/5400+30:1800+30"]

{[%evp 9,64,-37,-21,-12,-20,-11,-11,-3,-12,-14,-20,-49,-39,-48,-48,-50,-40,-48,-46,-50,-41,-29,-31,-81,-85,-165,-100,-287,-295,-299,-280,-262,-127,-130,-128,-144,-118,-114,-134,-197,-198,-399,-187,-252,-222,-255,-260,-243,-217,-427,-327,-487,-469,-616,-605,-750,-742]} 1. e4 {[%emt 0:00:04]} e5 {[%emt 0:00:25]} 2. Nc3 {[%emt 0:00:41]} Nf6 {[%emt 0:01:16]} 3. f4 {[%emt 0:01:11]} d5 {[%emt 0:01:18]} 4. fxe5 {[%emt 0:01:28]} Nxe4 {[%emt 0:00:29]} 5. Qf3 {[%emt 0:00:23]} Nc6 {[%emt 0:02:23]} (5... f5 $5 {[%cal Rf8c5]}) 6. Bb5 {[%emt 0:05:48] C29: Vienna Game: 2...Nf6 3 f4.} Nxc3 {[%emt 0:01:02]} 7. dxc3 {[%emt 0:04:10] 7.dxc3 scores better than 7.bxc3.} a6 {[%emt 0:04:10]} 8. Bxc6+ {[%emt 0:03:39] The position is equal.} bxc6 {[%emt 0:00:05]} 9. Ne2 {[%emt 0:04:01]} Qh4+ {[%emt 0:04:28]} 10. g3 {[%emt 0:09:49]} Qg4 {[%emt 0:01:19] [#]} 11. Rf1 $146 {[%emt 0:13:12]} ({Predecessor:} 11. Qf2 Qf5 12. Qe3 c5 13. Nf4 Bb7 14. Rf1 O-O-O 15. Nd3 Qe6 16. Bd2 c4 17. Nf4 {1-0 (49) Yip,C (2404)-Sokolovsky,Y (2415) chess24.com INT 2021}) 11... Qxf3 {[%emt 0:03:00]} 12. Rxf3 {[%emt 0:00:01]} Bg4 {[%emt 0:07:59]} 13. Rf4 {[%emt 0:03:14]} h5 {[%emt 0:00:59]} 14. Be3 {[%emt 0:04:15] Against Bc5} g6 {[%emt 0:04:07]} 15. Ra4 {[%emt 0:07:16]} Bg7 {[%emt 0:02:54]} 16. Bf4 {[%emt 0:02:53]} (16. Bd4 $15) 16... O-O $17 {[%emt 0:01:27][%cal Og6g5]} 17. Nd4 {[%emt 0:05:35]} (17. Kf2 $17 {is a better defense.}) 17... Rfe8 {[%emt 0:02:55]} (17... c5 $19 18. Nb3 c4) 18. Kf1 $2 {[%emt 0:03:10]} (18. Kf2 $17) 18... c5 $19 {[%emt 0:06:18][%cal Bc6c5,Bc5c4][%mdl 32]} (18... Bxe5 19. Bxe5 Rxe5 20. Ra5 $17) 19. Nb3 {[%emt 0:00:35]} c4 {[%emt 0:00:49]} (19... Bxe5 20. Nxc5 Bg7 21. Re1 $17) 20. Nc5 {[%emt 0:01:13]} Bf8 {[%emt 0:03:18]} (20... Bxe5 21. Bxe5 Rxe5 22. Re1 Rxe1+ 23. Kxe1 $17) (20... a5 $19 {and Black stays clearly on top.} 21. Re1 Bf8) 21. Ra5 $17 {[%emt 0:07:39]} g5 $1 {[%emt 0:05:26]} 22. Bxg5 {[%emt 0:01:53]} Rxe5 {[%emt 0:00:11]} 23. Bf4 {[%emt 0:03:22]} Re2 $36 {[%emt 0:00:40][%mdl 2048] White is under strong pressure.} 24. Nd7 {[%emt 0:12:02] [#]} (24. h3 $17 Rh2 25. hxg4 Bxc5 26. Rxc5 Rh1+ 27. Ke2 Re8+ 28. Kf2 Rxa1 29. gxh5) 24... Bg7 $1 $19 {[%emt 0:08:15]} (24... Rxh2 25. Nf6+ Kg7 26. Kg1 Rxc2 27. Nxg4 hxg4 28. Rxd5 $17) 25. Rxd5 $2 {[%emt 0:00:31]} (25. h3 Bf3 26. Rxd5) 25... Rxc2 {[%emt 0:02:43]} (25... Rae8 $142 26. Kg1 Be6) 26. Ne5 {[%emt 0:02:57] [#]} (26. Kg1 {was necessary.}) 26... Bh3+ $1 {[%emt 0:05:07] This bishop pair is nice.} (26... Rxb2 27. Nxg4 hxg4 28. Rg5 $17) (26... Rxh2 27. Kg1 Rxb2 28. Nxg4 hxg4 29. Rc5 $17) 27. Kg1 {[%emt 0:00:37]} Rg2+ {[%emt 0:01:32]} ({Inferior is} 27... Rxb2 28. Nxc4 Rg2+ 29. Kh1 $17) 28. Kh1 {[%emt 0:00:03]} Rxb2 {[%emt 0:04:59] aiming for ...Bg2+.} 29. Rc5 $2 {[%emt 0:00:04]} (29. Nxc4 {was forced.} Bg2+ 30. Kg1 Bxd5 31. Nxb2) 29... Rab8 {[%emt 0:01:44] ( -> ...Rb1+)} 30. Rg1 {[%emt 0:01:55]} (30. Rd1 {was the only chance.} Bf8 31. Rxc4 (31. Rxc7 $2 Rb1 $19)) 30... R8b5 {[%emt 0:05:02] Black is clearly winning.} 31. Rxb5 {[%emt 0:01:16]} axb5 {[%emt 0:00:13]} (31... Rxb5 $2 {is the wrong capture.} 32. Nxc4 Be6 33. Ne3 $19) 32. Rc1 {[%emt 0:01:00]} Re2 {[%emt 0:00:51] Weighted Error Value: White=0.60/Black=0.16 (very precise)} 0-1

[Event "44th Chess Olympiad Women 2022"]
[Site "Chennai"]
[Date "2022.07.30"]
[Round "2.32"]
[White "Nikolovska, Dragana"]
[Black "Mariroh, Fariha"]
[Result "0-1"]
[ECO "B06"]
[WhiteElo "1876"]
[BlackElo "1839"]
[Annotator "NA RC COMBH"]
[PlyCount "74"]
[EventDate "2022.07.29"]
[EventType "team-tourn"]
[EventCountry "IND"]
[SourceTitle "playchess.com"]
[Source "ChessBase"]
[SourceQuality "1"]
[WhiteTeam "Macedonia"]
[BlackTeam "Indonesia"]
[WhiteTeamCountry "MKD"]
[BlackTeamCountry "INA"]
[TimeControl "40/5400+30:1800+30"]

1. e4 {[%emt 0:00:04]} c5 {[%emt 0:00:06]} 2. c3 {[%emt 0:00:09]} d5 {[%emt 0:00:21]} 3. exd5 {[%emt 0:00:21]} Qxd5 {[%emt 0:00:06]} 4. d4 {[%emt 0:00:07]} g6 {[%emt 0:00:10]} 5. Nf3 {[%emt 0:09:39]} Bg7 {[%emt 0:00:55]} 6. Na3 {[%emt 0:03:37]} cxd4 {[%emt 0:00:23]} 7. Nb5 {[%emt 0:01:36]} Na6 {[%emt 0:00:16]} 8. Nbxd4 {[%emt 0:01:20]} Nf6 {[%emt 0:03:36]} 9. Bb5+ {[%emt 0:05:31]} Bd7 {[%emt 0:00:16]} 10. Bxd7+ {[%emt 0:01:59]} Nxd7 {[%emt 0:01:26]} 11. O-O {[%emt 0:02:15]} O-O {[%emt 0:08:30]} 12. Re1 {[%emt 0:06:06]} Rfe8 {[%emt 0:04:12]} 13. Be3 {[%emt 0:09:04]} Nb6 {[%emt 0:06:25]} 14. b3 {[%emt 0:06:44]} Qh5 {[%emt 0:27:10]} 15. c4 {[%emt 0:06:00]} Rad8 {[%emt 0:02:26]} 16. Qe2 {[%emt 0:00:38]} e5 {[%emt 0:11:28]} 17. Nb5 {[%emt 0:06:33]} e4 {[%emt 0:04:45]} 18. Nfd4 {[%emt 0:00:25]} Qxe2 {[%emt 0:00:27]} 19. Rxe2 {[%emt 0:00:07]} Nb4 {[%emt 0:04:34]} 20. Rd1 {[%emt 0:01:10]} Nd3 {[%emt 0:09:52]} 21. Nc2 {[%emt 0:03:33]} Nc8 {[%emt 0:03:53]} 22. Nc7 {[%emt 0:16:59]} Rf8 {[%emt 0:06:54]} 23. Nd5 {[%emt 0:03:13]} f5 {[%emt 0:01:23]} 24. Bd4 {[%emt 0:04:11]} Rf7 {[%emt 0:01:29]} 25. Bxg7 {[%emt 0:01:51]} Kxg7 {[%emt 0:00:05]} 26. Nd4 {[%emt 0:00:54]} Rd6 {[%emt 0:00:31]} 27. Red2 {[%emt 0:03:43]} a6 {[%emt 0:00:50]} 28. a4 {[%emt 0:04:42]} Ne7 {[%emt 0:00:45]} 29. Nxe7 {[%emt 0:00:50]} Rxe7 {[%emt 0:00:04]} 30. Ne2 {[%emt 0:00:48]} Kf6 {[%emt 0:01:12]} 31. Nf4 {[%emt 0:01:10]} Red7 {[%emt 0:00:15]} 32. Nxd3 {[%emt 0:00:38]} Rxd3 {[%emt 0:00:33]} 33. Rxd3 {[%emt 0:00:07]} Rxd3 {[%emt 0:00:03]} 34. Rb1 {[%emt 0:00:52]} Ke5 {[%emt 0:00:40]} 35. b4 {[%emt 0:00:31]} Kd4 {[%emt 0:00:19]} 36. Rc1 {[%emt 0:00:31]} Rc3 {[%emt 0:00:31]} 37. Rxc3 {[%emt 0:00:30]} Kxc3 {[%emt 0:00:05]} 0-1

[Event "44th Chess Olympiad Women 2022"]
[Site "Chennai"]
[Date "2022.07.30"]
[Round "2.33"]
[White "Rodriguez Rueda, Paula Andrea"]
[Black "Lampard, Alice"]
[Result "1-0"]
[ECO "D74"]
[WhiteElo "2237"]
[BlackElo "1729"]
[Annotator "TA"]
[PlyCount "93"]
[EventDate "2022.07.29"]
[EventType "team-tourn"]
[EventCountry "IND"]
[SourceTitle "playchess.com"]
[Source "ChessBase"]
[SourceQuality "1"]
[WhiteTeam "Colombia"]
[BlackTeam "Scotland"]
[WhiteTeamCountry "COL"]
[BlackTeamCountry "SCO"]
[TimeControl "40/5400+30:1800+30"]

{[%evp 16,93,15,12,53,16,51,22,51,27,43,32,59,32,70,30,35,8,19,7,19,0,20,22,22,25,33,25,32,23,54,50,95,0,9,0,31,-12,33,14,38,25,57,52,50,32,28,28,35,31,31,32,53,28,29,8,45,43,125,121,206,201,259,255,378,386,416,375,426,426,426,426,584,582,584,583,866,836,806,788]} 1. d4 {[%emt 0:00:03]} Nf6 {[%emt 0:00:07]} 2. c4 {[%emt 0:00:15]} g6 {[%emt 0:00:13]} 3. Nf3 {[%emt 0:00:06]} Bg7 {[%emt 0:00:43]} 4. g3 {[%emt 0:00:04]} d5 {[%emt 0:01:29]} 5. cxd5 {[%emt 0:00:18]} Nxd5 {[%emt 0:00:33]} 6. Bg2 {[%emt 0:00:06]} O-O {[%emt 0:02:46]} 7. O-O {[%emt 0:00:05]} Nc6 {[%emt 0:05:23][%cal Bb8c6,Bc6a5,Ba5c4][%mdl 32]} 8. Nc3 {[%emt 0:10:15]} Nxc3 {[%emt 0:05:43]} 9. bxc3 {[%emt 0:00:03]} Bd7 {[%emt 0:07:07] D74: Fianchetto Grünfeld: Main Line (5 Nf3 0-0 6 cxd5 Nxd5 7 0-0).} 10. e4 {[%emt 0:08:12]} a6 {[%emt 0:04:49] [#]} 11. Bg5 $146 {[%emt 0:07:46]} ({Predecessor:} 11. Rb1 b5 12. Bf4 Na5 13. Ne5 Bc8 14. Nd3 Nc4 15. e5 Rb8 16. Nc5 Rb6 17. a4 {1-0 (31) Gonzalez Diez,R-Villamanan Alonso,C Valladolid 1998}) 11... Na5 {[%emt 0:08:34][%cal Oc7c5] The position is equal.} 12. Qc1 {[%emt 0:02:49]} Re8 {[%emt 0:06:10]} 13. Rb1 {[%emt 0:05:20]} Qc8 {[%emt 0:10:45]} 14. Re1 {[%emt 0:08:10]} Nc4 {[%emt 0:05:12]} 15. e5 {[%emt 0:04:17]} Bc6 {[%emt 0:01:36]} 16. Nd2 {[%emt 0:05:56]} Bxg2 {[%emt 0:01:30]} 17. Kxg2 {[%emt 0:00:30]} Qe6 {[%emt 0:02:05]} 18. Kg1 {[%emt 0:04:05]} b6 {[%emt 0:05:43]} 19. Nxc4 {[%emt 0:09:02]} Qxc4 {[%emt 0:03:56]} 20. Qa3 {[%emt 0:01:23]} f6 {[%emt 0:04:09]} 21. Bf4 {[%emt 0:07:35]} g5 {[%emt 0:01:32]} 22. Be3 {[%emt 0:03:17]} Rad8 {[%emt 0:02:45]} 23. Rb4 {[%emt 0:02:00]} Qd3 {[%emt 0:00:46]} 24. e6 {[%emt 0:02:56]} (24. Qb3+ $16 Kh8 25. Qc4 Qxc4 26. Rxc4) 24... Rd6 {[%emt 0:04:16]} 25. Bc1 {[%emt 0:04:00]} a5 {[%emt 0:01:31]} 26. Rb2 {[%emt 0:01:35]} (26. Qa4 $5 {[%cal Ra4e8]} Rc8 27. Re3 $11) 26... Kh8 {[%emt 0:02:29]} ({Resist} 26... Rxd4 27. Rd2 Qxd2 28. Bxd2 Rxd2 29. Qa4 $18) 27. Qb3 {[%emt 0:00:48]} Red8 {[%emt 0:00:51]} 28. Rd2 {[%emt 0:03:39]} Qf5 {[%emt 0:00:29]} 29. Rde2 {[%emt 0:00:47]} Bf8 {[%emt 0:05:12]} 30. Qc4 {[%emt 0:02:56] Against Rc6} Qd5 {[%emt 0:02:29]} 31. Qxc7 {[%emt 0:04:40] aiming for Ba3.} Rc6 {[%emt 0:00:18]} 32. Qb7 {[%emt 0:00:18]} Rxc3 {[%emt 0:01:46]} 33. Qxb6 {[%emt 0:00:36]} Rc4 {[%emt 0:01:39]} 34. Bd2 {[%emt 0:02:04][%cal Bc1d2,Bd2a5,Ba5b4][%mdl 32]} Qxd4 {[%emt 0:01:44]} 35. Qxd4 {[%emt 0:00:16]} (35. Bxa5 $5 {[%cal Rb6d8]} Qxb6 36. Bxb6 $14) 35... Rdxd4 {[%emt 0:00:13]} 36. Bxa5 {[%emt 0:00:24]} Bg7 {[%emt 0:00:40]} (36... Rd5 $14 37. Bd2 Kg7) 37. Rb2 {[%emt 0:00:23] [#] Strongly threatening Rb8+.} Rc8 {[%emt 0:00:45] Prevents Rb8.} (37... Bf8 $16) 38. Rb7 $18 {[%emt 0:01:17]} Bf8 {[%emt 0:00:20]} 39. Bb4 {[%emt 0:00:08]} Re8 {[%emt 0:00:28]} (39... Kg7 $142 40. Bxe7 Bxe7) 40. a4 {[%emt 0:01:06][%cal Ba2a4,Ba4a5][%mdl 32]} Rdd8 {[%emt 0:00:38]} 41. Rc1 {[%emt 0:30:24] [#] Hoping for a5.} Ra8 {[%emt 0:30:19]} 42. a5 {[%emt 0:00:06] White is clearly winning.} Ra6 {[%emt 0:00:09] Against Rc6} 43. Rb6 {[%emt 0:00:32]} Ra7 {[%emt 0:00:20]} 44. Rd1 {[%emt 0:00:28]} Rc8 {[%emt 0:00:17]} 45. Rd7 {[%emt 0:00:50]} Rcc7 {[%emt 0:01:11]} 46. Rb8 {[%emt 0:00:14][%csl LRe7,LRf8]} Kg7 {[%emt 0:00:27]} 47. Rdd8 {[%emt 0:00:07] Weighted Error Value: White=0.14 (very precise) /Black=0.30} 1-0